[Event "European Rapid Championship 2021"]
[Site "Katowice"]
[Date "2021.12.19"]
[Round "8.13"]
[White "Kalogeris, Ioannis"]
[Black "Tazbir, Marcin"]
[Result "0-1"]
[ECO "B50"]
[WhiteElo "2357"]
[BlackElo "2514"]
[Annotator "ChessBase"]
[PlyCount "72"]
[EventDate "2021.12.18"]
[EventType "swiss"]
[EventCountry "POL"]
[SourceTitle "playchess.com"]
[Source "ChessBase"]
[SourceQuality "1"]
[TimeControl "900+10"]

1. e4 {[%emt 0:00:20]} c5 {[%emt 0:00:01]} 2. Nf3 {[%emt 0:00:04]} d6 {[%emt 0:
00:02]} 3. Nc3 {[%emt 0:00:05]} Nc6 4. Bc4 {[%emt 0:00:05]} g6 {[%emt 0:00:23]}
5. d4 {[%emt 0:00:06]} cxd4 {[%emt 0:00:04]} 6. Nxd4 {[%emt 0:00:10]} Bg7 {
[%emt 0:00:01]} 7. Be3 {[%emt 0:00:10]} Nf6 {[%emt 0:00:02]} 8. f3 {[%emt 0:00:
09]} Bd7 {[%emt 0:00:05]} 9. g4 {[%emt 0:00:51]} Rc8 {[%emt 0:00:07]} 10. Bb3 {
[%emt 0:00:09]} Na5 {[%emt 0:01:02]} 11. h4 {[%emt 0:00:15]} h5 {[%emt 0:01:14]
} 12. g5 {[%emt 0:00:41]} Nh7 {[%emt 0:00:01]} 13. f4 {[%emt 0:02:34]} Nxb3 {
[%emt 0:00:44]} 14. axb3 {[%emt 0:00:10]} a6 {[%emt 0:00:02]} 15. O-O {[%emt 0:
01:28]} Bh3 {[%emt 0:01:27]} 16. Rf2 {[%emt 0:00:11]} e5 {[%emt 0:01:29]} 17.
Nde2 {[%emt 0:01:48]} Qd7 {[%emt 0:02:27]} 18. Qd3 {[%emt 0:02:12]} exf4 {
[%emt 0:02:46]} 19. Nxf4 {[%emt 0:00:29]} O-O {[%emt 0:00:06]} 20. Kh2 {
[%emt 0:01:29]} Be6 {[%emt 0:01:14]} 21. Bd4 {[%emt 0:00:06]} f6 {[%emt 0:00:
17]} 22. Nxg6 {[%emt 0:00:19]} Rf7 {[%emt 0:00:01]} 23. Rg1 {[%emt 0:03:36]}
fxg5 {[%emt 0:00:30]} 24. Bxg7 {[%emt 0:01:17]} Rxf2+ {[%emt 0:00:14]} 25. Kg3
{[%emt 0:00:01]} Kxg7 {[%emt 0:00:30]} 26. Kxf2 {[%emt 0:00:09]} Kxg6 {[%emt 0:
00:02]} 27. hxg5 {[%emt 0:00:12]} Rf8+ {[%emt 0:00:16]} 28. Ke1 {[%emt 0:00:04]
} Qf7 {[%emt 0:00:07]} 29. Ne2 {[%emt 0:00:12]} Qf2+ {[%emt 0:00:23]} 30. Kd2 {
[%emt 0:00:03]} Bg4 {[%emt 0:00:07]} 31. Qxd6+ {[%emt 0:00:03]} Kxg5 {[%emt 0:
00:02]} 32. Qe7+ {[%emt 0:00:31]} Kg6 {[%emt 0:00:02]} 33. Re1 {[%emt 0:00:21]}
Ng5 {[%emt 0:00:21]} 34. Kd3 {[%emt 0:00:17]} Rf3+ {[%emt 0:00:08]} 35. Kc4 {
[%emt 0:00:06]} Be6+ {[%emt 0:00:18]} 36. Kb4 {[%emt 0:00:08]} Qb6+ {[%emt 0:
00:12]} 0-1

[Event "European Rapid Championship 2021"]
[Site "Katowice"]
[Date "2021.12.19"]
[Round "8.13"]
[White "Kossobudzki, Robert"]
[Black "Zylka, Stanislaw"]
[Result "0-1"]
[ECO "A04"]
[WhiteElo "2033"]
[BlackElo "2367"]
[Annotator "NA"]
[PlyCount "120"]
[EventDate "2021.12.18"]
[EventType "swiss"]
[EventCountry "POL"]
[SourceTitle "playchess.com"]
[Source "ChessBase"]
[SourceQuality "1"]
[TimeControl "900+10"]

1. Nf3 {[%emt 0:00:01]} b6 {[%emt 0:00:01]} 2. b4 {[%emt 0:00:01]} e6 {[%emt 0:
00:12]} 3. Bb2 {[%emt 0:00:01]} Nf6 {[%emt 0:00:02]} 4. a3 {[%emt 0:00:01]} Bb7
{[%emt 0:00:04]} 5. c4 {[%emt 0:00:03]} a5 {[%emt 0:00:12]} 6. b5 {[%emt 0:00:
02]} d6 {[%emt 0:00:14]} 7. e3 {[%emt 0:00:05]} Nbd7 {[%emt 0:00:02]} 8. d4 {
[%emt 0:00:01]} g6 {[%emt 0:00:08]} 9. Be2 {[%emt 0:00:04]} Bg7 {[%emt 0:00:02]
} 10. O-O {[%emt 0:00:03]} O-O {[%emt 0:00:03]} 11. Nc3 {[%emt 0:00:02]} Re8 {
[%emt 0:00:20]} 12. Rc1 {[%emt 0:00:01]} e5 {[%emt 0:00:35]} 13. Na4 {[%emt 0:
00:02]} Ne4 {[%emt 0:00:17]} 14. Qc2 {[%emt 0:01:36]} Qe7 {[%emt 0:00:38]} 15.
Rfe1 {[%emt 0:01:57]} h6 {[%emt 0:01:55]} 16. Bf1 {[%emt 0:04:49]} Rad8 {
[%emt 0:00:17]} 17. Nd2 {[%emt 0:01:19]} Nxd2 {[%emt 0:00:46]} 18. Qxd2 {
[%emt 0:00:02]} Qg5 {[%emt 0:00:05]} 19. d5 {[%emt 0:02:01]} Bc8 {[%emt 0:00:
48]} 20. f4 {[%emt 0:00:52]} Qe7 {[%emt 0:02:02]} 21. Bd3 {[%emt 0:00:39]} e4 {
[%emt 0:00:54]} 22. Bxg7 {[%emt 0:00:05]} Kxg7 {[%emt 0:00:02]} 23. Be2 {
[%emt 0:00:30]} f5 {[%emt 0:00:26]} 24. Bd1 {[%emt 0:01:02]} Kh7 {[%emt 0:00:
20]} 25. g3 {[%emt 0:00:17]} Rg8 {[%emt 0:00:03]} 26. Kf2 {[%emt 0:00:04]} Rdf8
{[%emt 0:00:04]} 27. h4 {[%emt 0:00:08]} Kg7 {[%emt 0:00:09]} 28. Rh1 {[%emt 0:
00:38]} Kf7 {[%emt 0:00:02]} 29. Bb3 {[%emt 0:01:39]} Qf6 {[%emt 0:00:03]} 30.
c5 {[%emt 0:00:08]} Nxc5 {[%emt 0:00:40]} 31. Nxc5 {[%emt 0:00:03]} dxc5 {
[%emt 0:00:32]} 32. d6+ {[%emt 0:00:08]} Be6 {[%emt 0:00:01]} 33. Bxe6+ {
[%emt 0:00:04]} Qxe6 {[%emt 0:00:03]} 34. dxc7 {[%emt 0:00:03]} Rc8 {[%emt 0:
00:04]} 35. Qc3 {[%emt 0:00:35]} Rxc7 {[%emt 0:00:06]} 36. Rcd1 {[%emt 0:00:01]
} Rd7 {[%emt 0:00:50]} 37. Rd2 {[%emt 0:00:02]} Rgd8 {[%emt 0:00:34]} 38. Rhd1
{[%emt 0:00:27]} Rxd2+ {[%emt 0:00:31]} 39. Rxd2 {[%emt 0:00:01]} Rxd2+ {
[%emt 0:00:22]} 40. Qxd2 {[%emt 0:00:01]} Ke7 {[%emt 0:00:02]} 41. Qc3 {
[%emt 0:00:22]} Qf6 {[%emt 0:00:01]} 42. Qc4 {[%emt 0:00:12]} Qb2+ {[%emt 0:00:
07]} 43. Kg1 {[%emt 0:00:05]} Qd2 {[%emt 0:00:11]} 44. Qg8 {[%emt 0:00:15]}
Qxe3+ {[%emt 0:00:06]} 45. Kh2 {[%emt 0:00:02]} Qd2+ {[%emt 0:02:34]} 46. Kh3 {
[%emt 0:00:21]} Qd6 {[%emt 0:00:05]} 47. Qg7+ {[%emt 0:00:27]} Kd8 {[%emt 0:00:
03]} 48. Qg8+ {[%emt 0:00:02]} Kc7 {[%emt 0:00:49]} 49. Qg7+ {[%emt 0:00:52]}
Kb8 {[%emt 0:00:23]} 50. Qg8+ {[%emt 0:00:15]} Kb7 {[%emt 0:00:09]} 51. Qf7+ {
[%emt 0:00:12]} Qc7 {[%emt 0:00:33]} 52. Qxg6 {[%emt 0:00:15]} c4 {[%emt 0:00:
01]} 53. Qxf5 {[%emt 0:00:04]} Qc8 {[%emt 0:00:08]} 54. Qxc8+ {[%emt 0:00:45]}
Kxc8 {[%emt 0:00:01]} 55. f5 {[%emt 0:00:00]} c3 {[%emt 0:00:01]} 56. f6 {
[%emt 0:00:04]} Kd7 {[%emt 0:00:01]} 57. g4 {[%emt 0:00:01]} c2 {[%emt 0:00:01]
} 58. g5 {[%emt 0:00:01]} c1=Q {[%emt 0:00:04]} 59. g6 {[%emt 0:00:02]} Ke6 {
[%emt 0:00:11]} 60. f7 {[%emt 0:00:04]} Ke7 {[%emt 0:00:02]} 0-1

[Event "European Rapid Championship 2021"]
[Site "Katowice"]
[Date "2021.12.19"]
[Round "8.14"]
[White "Schneider, Ilja"]
[Black "Karolczuk, Iwo"]
[Result "1-0"]
[ECO "C88"]
[WhiteElo "2490"]
[BlackElo "2007"]
[Annotator "ChessBase"]
[PlyCount "107"]
[EventDate "2021.12.18"]
[EventType "swiss"]
[EventCountry "POL"]
[SourceTitle "playchess.com"]
[Source "ChessBase"]
[SourceQuality "1"]
[TimeControl "900+10"]

1. e4 {[%emt 0:00:02]} e5 {[%emt 0:00:57]} 2. Nf3 {[%emt 0:00:01]} Nc6 {
[%emt 0:00:02]} 3. Bb5 {[%emt 0:00:15]} a6 {[%emt 0:00:07]} 4. Ba4 {[%emt 0:00:
00]} Nf6 {[%emt 0:00:04]} 5. O-O {[%emt 0:00:02]} Be7 {[%emt 0:00:05]} 6. Re1 {
[%emt 0:00:01]} b5 {[%emt 0:00:26]} 7. Bb3 {[%emt 0:00:01]} d6 {[%emt 0:00:25]}
8. a4 {[%emt 0:00:03]} Rb8 {[%emt 0:00:30]} 9. axb5 {[%emt 0:00:40]} axb5 {
[%emt 0:00:02]} 10. h3 {[%emt 0:00:57]} O-O {[%emt 0:00:11]} 11. d3 {[%emt 0:
00:46]} h6 {[%emt 0:00:20]} 12. Nc3 {[%emt 0:00:53]} Nd4 {[%emt 0:01:41]} 13.
Nxd4 {[%emt 0:00:42]} exd4 {[%emt 0:00:02]} 14. Nd5 {[%emt 0:00:06]} Nxd5 {
[%emt 0:00:21]} 15. Bxd5 {[%emt 0:00:42]} Be6 {[%emt 0:00:45]} 16. Bxe6 {
[%emt 0:00:48]} fxe6 {[%emt 0:00:02]} 17. Qg4 {[%emt 0:00:01]} Rf6 {[%emt 0:00:
44]} 18. e5 {[%emt 0:00:02]} dxe5 {[%emt 0:00:07]} 19. Rxe5 {[%emt 0:00:01]}
Qd7 {[%emt 0:00:50]} 20. Ra6 {[%emt 0:01:38]} c6 {[%emt 0:00:59]} 21. Re2 {
[%emt 0:01:32]} Rc8 {[%emt 0:02:37]} 22. Bf4 {[%emt 0:00:23]} Bc5 {[%emt 0:01:
19]} 23. Be5 {[%emt 0:01:06]} Rf5 {[%emt 0:00:30]} 24. Re4 {[%emt 0:01:09]} Rg5
{[%emt 0:00:57]} 25. Qe2 {[%emt 0:00:20]} Rf8 {[%emt 0:01:16]} 26. Bg3 {
[%emt 0:01:19]} Rg6 {[%emt 0:01:26]} 27. Ra1 {[%emt 0:01:31]} Re8 {[%emt 0:00:
37]} 28. h4 {[%emt 0:00:25]} Bb6 {[%emt 0:00:46]} 29. Rg4 {[%emt 0:00:45]} Rxg4
{[%emt 0:00:11]} 30. Qxg4 {[%emt 0:00:02]} Bc5 {[%emt 0:00:37]} 31. Be5 {
[%emt 0:00:05]} Bf8 {[%emt 0:00:48]} 32. Qxd4 {[%emt 0:00:27]} Qxd4 {[%emt 0:
00:15]} 33. Bxd4 {[%emt 0:00:01]} c5 {[%emt 0:00:00]} 34. Be5 {[%emt 0:00:08]}
c4 {[%emt 0:00:22]} 35. d4 {[%emt 0:00:07]} b4 {[%emt 0:00:09]} 36. Ra7 {
[%emt 0:00:05]} Rc8 {[%emt 0:00:25]} 37. g4 {[%emt 0:00:28]} Kh7 {[%emt 0:00:
09]} 38. Kg2 {[%emt 0:00:07]} Kg6 {[%emt 0:00:03]} 39. h5+ {[%emt 0:00:02]} Kh7
{[%emt 0:00:01]} 40. f4 {[%emt 0:00:31]} b3 {[%emt 0:00:13]} 41. c3 {[%emt 0:
00:08]} Kg8 {[%emt 0:00:02]} 42. Kf3 {[%emt 0:00:06]} Re8 {[%emt 0:00:09]} 43.
Ke4 {[%emt 0:00:14]} Re7 {[%emt 0:00:05]} 44. Ra8 {[%emt 0:00:07]} Rd7 {
[%emt 0:00:01]} 45. Rc8 {[%emt 0:00:14]} Kf7 {[%emt 0:00:05]} 46. Rxc4 {
[%emt 0:00:03]} Ra7 {[%emt 0:00:19]} 47. Rc7+ {[%emt 0:00:26]} Rxc7 {[%emt 0:
00:06]} 48. Bxc7 {[%emt 0:00:01]} Ba3 {[%emt 0:00:01]} 49. Kd3 {[%emt 0:00:01]}
Bxb2 {[%emt 0:00:02]} 50. Kc4 {[%emt 0:00:01]} g6 {[%emt 0:00:26]} 51. Kxb3 {
[%emt 0:00:01]} Bc1 {[%emt 0:00:02]} 52. Kc2 {[%emt 0:00:06]} Be3 {[%emt 0:00:
08]} 53. Kd3 {[%emt 0:00:01]} Bf2 {[%emt 0:00:02]} 54. Ke4 {[%emt 0:00:01]} 1-0

[Event "European Rapid Championship 2021"]
[Site "Katowice"]
[Date "2021.12.19"]
[Round "8.14"]
[White "Czerw, Dawid"]
[Black "Jedrusik, Adam"]
[Result "0-1"]
[ECO "D43"]
[WhiteElo "2158"]
[BlackElo "1769"]
[Annotator "NA"]
[PlyCount "78"]
[EventDate "2021.12.18"]
[EventType "swiss"]
[EventCountry "POL"]
[SourceTitle "playchess.com"]
[Source "ChessBase"]
[SourceQuality "1"]
[TimeControl "900+10"]

1. d4 {[%emt 0:00:53]} d5 {[%emt 0:00:06]} 2. c4 {[%emt 0:00:01]} c6 {[%emt 0:
00:01]} 3. Nf3 {[%emt 0:00:04]} Nf6 {[%emt 0:00:01]} 4. Nc3 {[%emt 0:00:01]} e6
{[%emt 0:00:02]} 5. Bg5 {[%emt 0:00:02]} h6 {[%emt 0:00:02]} 6. Bh4 {[%emt 0:
00:02]} dxc4 {[%emt 0:00:03]} 7. e4 {[%emt 0:00:13]} g5 {[%emt 0:00:01]} 8. Bg3
{[%emt 0:00:01]} b5 {[%emt 0:00:02]} 9. e5 {[%emt 0:00:10]} Nd5 {[%emt 0:00:02]
} 10. Nd2 {[%emt 0:00:02]} Nd7 {[%emt 0:01:03]} 11. h4 {[%emt 0:00:07]} g4 {
[%emt 0:02:31]} 12. Qxg4 {[%emt 0:00:26]} Bb7 {[%emt 0:00:10]} 13. h5 {[%emt 0:
00:55]} Qa5 {[%emt 0:00:56]} 14. Rc1 {[%emt 0:01:50]} Nxc3 {[%emt 0:01:29]} 15.
bxc3 {[%emt 0:00:07]} c5 {[%emt 0:00:17]} 16. Be2 {[%emt 0:02:31]} cxd4 {
[%emt 0:02:28]} 17. Qxd4 {[%emt 0:00:03]} Bc5 {[%emt 0:00:12]} 18. Qf4 {
[%emt 0:00:22]} Bxg2 {[%emt 0:01:10]} 19. Rg1 {[%emt 0:00:33]} Bd5 {[%emt 0:00:
02]} 20. Bh4 {[%emt 0:00:26]} Qc7 {[%emt 0:00:52]} 21. Rg7 {[%emt 0:01:19]}
Nxe5 {[%emt 0:00:48]} 22. Bg3 {[%emt 0:01:16]} Bd6 {[%emt 0:00:01]} 23. Qf6 {
[%emt 0:00:21]} Rf8 {[%emt 0:01:02]} 24. Nf1 {[%emt 0:02:32]} Nd3+ {[%emt 0:01:
50]} 25. Bxd3 {[%emt 0:00:14]} cxd3 {[%emt 0:00:01]} 26. Ne3 {[%emt 0:00:52]}
Bxg3 {[%emt 0:01:49]} 27. fxg3 {[%emt 0:00:05]} Rd8 {[%emt 0:00:09]} 28. Kd2 {
[%emt 0:00:37]} Qa5 {[%emt 0:00:36]} 29. Ra1 {[%emt 0:01:16]} Qa3 {[%emt 0:00:
42]} 30. Nd1 {[%emt 0:00:01]} Rc8 {[%emt 0:01:03]} 31. Qd4 {[%emt 0:00:23]} Rc4
{[%emt 0:00:19]} 32. Qxd3 {[%emt 0:00:24]} b4 {[%emt 0:00:00]} 33. Rc1 {
[%emt 0:00:23]} Ke7 {[%emt 0:00:21]} 34. Ne3 {[%emt 0:00:21]} bxc3+ {[%emt 0:
00:15]} 35. Kd1 {[%emt 0:00:35]} Bf3+ {[%emt 0:00:08]} 36. Ke1 {[%emt 0:00:06]}
Qxc1+ {[%emt 0:00:10]} 37. Kf2 {[%emt 0:00:01]} Qd2+ {[%emt 0:00:06]} 38. Qxd2
{[%emt 0:00:01]} cxd2 {[%emt 0:00:00]} 39. Kxf3 {[%emt 0:00:01]} Rc3 {[%emt 0:
00:01]} 0-1

[Event "European Rapid Championship 2021"]
[Site "Katowice"]
[Date "2021.12.19"]
[Round "8.15"]
[White "Janaszak, Dawid"]
[Black "Vetoshko, Volodymyr"]
[Result "0-1"]
[ECO "B23"]
[WhiteElo "2328"]
[BlackElo "2483"]
[Annotator "ChessBase"]
[PlyCount "62"]
[EventDate "2021.12.18"]
[EventType "swiss"]
[EventCountry "POL"]
[SourceTitle "playchess.com"]
[Source "ChessBase"]
[SourceQuality "1"]
[TimeControl "900+10"]

1. e4 {[%emt 0:00:01]} c5 {[%emt 0:00:00]} 2. Nc3 {[%emt 0:00:01]} e6 {[%emt 0:
00:01]} 3. Nge2 {[%emt 0:00:13]} Nc6 {[%emt 0:00:05]} 4. g3 {[%emt 0:00:07]} d5
{[%emt 0:00:59]} 5. exd5 {[%emt 0:00:17]} exd5 {[%emt 0:00:00]} 6. d4 {[%emt 0:
02:58]} Bg4 {[%emt 0:00:01]} 7. Bg2 {[%emt 0:01:19]} Nxd4 {[%emt 0:00:16]} 8.
h3 {[%emt 0:01:50]} Bf3 {[%emt 0:01:03]} 9. O-O {[%emt 0:01:22]} Nxe2+ {
[%emt 0:01:08]} 10. Nxe2 {[%emt 0:00:09]} Bxg2 {[%emt 0:00:05]} 11. Kxg2 {
[%emt 0:00:05]} Be7 {[%emt 0:01:02]} 12. b4 {[%emt 0:02:56]} cxb4 {[%emt 0:00:
33]} 13. Bb2 {[%emt 0:00:04]} Nf6 {[%emt 0:00:05]} 14. Nd4 {[%emt 0:00:14]} O-O
{[%emt 0:02:19]} 15. Nf5 {[%emt 0:00:03]} Re8 {[%emt 0:01:22]} 16. Re1 {
[%emt 0:01:34]} Bf8 {[%emt 0:01:11]} 17. Qf3 {[%emt 0:01:10]} g6 {[%emt 0:03:
52]} 18. Rxe8 {[%emt 0:00:28]} Nxe8 {[%emt 0:00:27]} 19. Ne3 {[%emt 0:00:44]}
Bg7 {[%emt 0:00:42]} 20. Bxg7 {[%emt 0:00:04]} Kxg7 {[%emt 0:00:13]} 21. Nxd5 {
[%emt 0:00:19]} a5 {[%emt 0:00:35]} 22. Re1 {[%emt 0:00:23]} Ra6 {[%emt 0:00:
37]} 23. Nf4 {[%emt 0:01:40]} Rc6 {[%emt 0:00:23]} 24. Qe2 {[%emt 0:00:31]} Nf6
{[%emt 0:00:04]} 25. Rd1 {[%emt 0:00:24]} Rd6 {[%emt 0:00:10]} 26. Rxd6 {
[%emt 0:00:19]} Qxd6 {[%emt 0:00:01]} 27. Kh2 {[%emt 0:00:10]} Qc6 {[%emt 0:00:
37]} 28. Qe7 {[%emt 0:00:12]} g5 {[%emt 0:00:36]} 29. Nd3 {[%emt 0:00:07]} Qxc2
{[%emt 0:00:11]} 30. Ne5 {[%emt 0:00:14]} Qxf2+ {[%emt 0:00:02]} 31. Kh1 {
[%emt 0:00:01]} Ne4 {[%emt 0:00:13]} 0-1

[Event "European Rapid Championship 2021"]
[Site "Katowice"]
[Date "2021.12.19"]
[Round "8.15"]
[White "Seemann, Jakub"]
[Black "Bogdanov, Ignat"]
[Result "1-0"]
[ECO "D20"]
[WhiteElo "1862"]
[BlackElo "2058"]
[Annotator "NA"]
[PlyCount "111"]
[EventDate "2021.12.18"]
[EventType "swiss"]
[EventCountry "POL"]
[SourceTitle "playchess.com"]
[Source "ChessBase"]
[SourceQuality "1"]
[TimeControl "900+10"]

1. d4 {[%emt 0:00:02]} d5 {[%emt 0:00:02]} 2. c4 {[%emt 0:00:01]} dxc4 {
[%emt 0:00:02]} 3. e3 {[%emt 0:00:05]} c5 {[%emt 0:00:01]} 4. Bxc4 {[%emt 0:00:
07]} cxd4 {[%emt 0:00:02]} 5. exd4 {[%emt 0:00:04]} e6 {[%emt 0:00:02]} 6. Nf3
{[%emt 0:00:04]} Nf6 {[%emt 0:00:02]} 7. O-O {[%emt 0:00:04]} Be7 {[%emt 0:00:
02]} 8. Nc3 {[%emt 0:00:06]} O-O {[%emt 0:00:03]} 9. Qe2 {[%emt 0:00:04]} a6 {
[%emt 0:00:08]} 10. Rd1 {[%emt 0:00:28]} b5 {[%emt 0:00:40]} 11. Bb3 {[%emt 0:
00:07]} Bb7 {[%emt 0:00:05]} 12. Ne5 {[%emt 0:00:56]} Nd5 {[%emt 0:04:38]} 13.
Bc2 {[%emt 0:01:30]} Nxc3 {[%emt 0:02:40]} 14. bxc3 {[%emt 0:00:12]} Bf6 {
[%emt 0:00:10]} 15. Ba3 {[%emt 0:01:03]} Be7 {[%emt 0:03:36]} 16. Qh5 {[%emt 0:
00:16]} f5 {[%emt 0:00:31]} 17. Bb3 {[%emt 0:00:23]} Bd5 {[%emt 0:01:31]} 18.
Bxd5 {[%emt 0:00:02]} exd5 {[%emt 0:00:01]} 19. Bxe7 {[%emt 0:00:12]} Qxe7 {
[%emt 0:00:01]} 20. Rd3 {[%emt 0:00:19]} Qe8 {[%emt 0:01:56]} 21. Qf3 {[%emt 0:
02:48]} Qd8 {[%emt 0:00:23]} 22. Re1 {[%emt 0:00:12]} Qd6 {[%emt 0:00:27]} 23.
Qh5 {[%emt 0:01:22]} g6 {[%emt 0:00:14]} 24. Qh6 {[%emt 0:03:07]} Ra7 {[%emt 0:
00:16]} 25. Rde3 {[%emt 0:00:28]} Rg7 {[%emt 0:00:15]} 26. Nf3 {[%emt 0:00:22]}
Nc6 {[%emt 0:00:31]} 27. Ng5 {[%emt 0:00:16]} Nd8 {[%emt 0:00:01]} 28. Rg3 {
[%emt 0:01:07]} f4 {[%emt 0:00:35]} 29. Rg4 {[%emt 0:00:02]} Re7 {[%emt 0:00:
35]} 30. Re5 {[%emt 0:00:34]} Rf6 {[%emt 0:00:24]} 31. Rh4 {[%emt 0:01:44]} Qd7
{[%emt 0:00:01]} 32. h3 {[%emt 0:01:22]} Ne6 {[%emt 0:00:01]} 33. Nxe6 {
[%emt 0:00:34]} Rexe6 {[%emt 0:00:03]} 34. Rxe6 {[%emt 0:00:13]} Rxe6 {[%emt 0:
00:01]} 35. Rxf4 {[%emt 0:00:05]} Qe7 {[%emt 0:00:01]} 36. Rf3 {[%emt 0:00:17]}
Re1+ {[%emt 0:00:01]} 37. Kh2 {[%emt 0:00:01]} Qc7+ {[%emt 0:00:08]} 38. g3 {
[%emt 0:00:13]} Qe7 {[%emt 0:00:04]} 39. Qf4 {[%emt 0:00:10]} Kg7 {[%emt 0:00:
19]} 40. h4 {[%emt 0:00:01]} Re4 {[%emt 0:00:14]} 41. Qb8 {[%emt 0:00:15]} Re6
{[%emt 0:00:17]} 42. Qa8 {[%emt 0:00:14]} Rd6 {[%emt 0:00:02]} 43. Re3 {
[%emt 0:00:08]} Re6 {[%emt 0:00:12]} 44. Rf3 {[%emt 0:00:24]} Rd6 {[%emt 0:00:
01]} 45. Kg2 {[%emt 0:00:02]} Qd8 {[%emt 0:00:44]} 46. Qa7+ {[%emt 0:00:12]}
Qd7 {[%emt 0:00:02]} 47. Qc5 {[%emt 0:00:02]} Qc6 {[%emt 0:00:07]} 48. Qa3 {
[%emt 0:00:12]} Qd7 {[%emt 0:00:06]} 49. Qc1 {[%emt 0:00:14]} Re6 {[%emt 0:00:
09]} 50. h5 {[%emt 0:00:13]} gxh5 {[%emt 0:00:32]} 51. Qg5+ {[%emt 0:00:04]}
Rg6 {[%emt 0:00:02]} 52. Qe5+ {[%emt 0:00:14]} Kh6 {[%emt 0:00:35]} 53. Rf5 {
[%emt 0:00:10]} Rd6 {[%emt 0:00:11]} 54. Rxh5+ {[%emt 0:00:06]} Kg6 {[%emt 0:
00:02]} 55. Qg5+ {[%emt 0:00:01]} Kf7 {[%emt 0:00:01]} 56. Rxh7+ {[%emt 0:00:
01]} 1-0

[Event "European Rapid Championship 2021"]
[Site "Katowice"]
[Date "2021.12.19"]
[Round "8.16"]
[White "Karpus, Michal"]
[Black "Gumularz, Szymon"]
[Result "0-1"]
[ECO "C75"]
[WhiteElo "2185"]
[BlackElo "2452"]
[Annotator "ChessBase"]
[PlyCount "110"]
[EventDate "2021.12.18"]
[EventType "swiss"]
[EventCountry "POL"]
[SourceTitle "playchess.com"]
[Source "ChessBase"]
[SourceQuality "1"]
[TimeControl "900+10"]

1. e4 {[%emt 0:00:01]} e5 {[%emt 0:00:01]} 2. Nf3 {[%emt 0:00:01]} Nc6 {
[%emt 0:00:01]} 3. Bb5 {[%emt 0:00:02]} a6 {[%emt 0:00:03]} 4. Ba4 {[%emt 0:00:
01]} d6 {[%emt 0:00:03]} 5. c3 {[%emt 0:00:08]} Bd7 {[%emt 0:00:04]} 6. O-O {
[%emt 0:00:11]} Nf6 {[%emt 0:00:02]} 7. Re1 {[%emt 0:00:12]} g6 {[%emt 0:00:05]
} 8. d4 {[%emt 0:00:33]} Bg7 {[%emt 0:00:02]} 9. Bxc6 {[%emt 0:01:15]} Bxc6 {
[%emt 0:00:13]} 10. dxe5 {[%emt 0:00:02]} Nxe4 {[%emt 0:01:33]} 11. exd6 {
[%emt 0:00:36]} O-O {[%emt 0:00:04]} 12. Bf4 {[%emt 0:03:09]} Nxd6 {[%emt 0:00:
18]} 13. Ne5 {[%emt 0:01:14]} Bxe5 {[%emt 0:02:18]} 14. Bxe5 {[%emt 0:00:21]}
Nc4 {[%emt 0:01:04]} 15. Qxd8 {[%emt 0:01:32]} Rfxd8 {[%emt 0:00:02]} 16. Bxc7
{[%emt 0:00:02]} Re8 {[%emt 0:00:01]} 17. Na3 {[%emt 0:00:28]} Nxb2 {[%emt 0:
00:02]} 18. Rxe8+ {[%emt 0:01:03]} Rxe8 {[%emt 0:00:02]} 19. Nc2 {[%emt 0:01:
04]} Na4 {[%emt 0:00:19]} 20. c4 {[%emt 0:00:13]} Re4 {[%emt 0:00:52]} 21. Ne3
{[%emt 0:00:35]} f5 {[%emt 0:00:03]} 22. Rc1 {[%emt 0:00:15]} Kf7 {[%emt 0:00:
09]} 23. Kf1 {[%emt 0:00:34]} Rd4 {[%emt 0:00:13]} 24. Ke2 {[%emt 0:00:54]} Ke6
{[%emt 0:00:10]} 25. f3 {[%emt 0:00:25]} f4 {[%emt 0:01:10]} 26. Nd1 {[%emt 0:
00:28]} g5 {[%emt 0:00:17]} 27. Ba5 {[%emt 0:00:54]} Kf5 {[%emt 0:00:22]} 28.
Be1 {[%emt 0:00:39]} h5 {[%emt 0:00:14]} 29. Bf2 {[%emt 0:00:01]} Rd7 {[%emt 0:
00:04]} 30. h3 {[%emt 0:00:16]} g4 {[%emt 0:00:05]} 31. hxg4+ {[%emt 0:00:02]}
hxg4 {[%emt 0:00:02]} 32. Nc3 {[%emt 0:01:23]} Nb2 {[%emt 0:00:23]} 33. fxg4+ {
[%emt 0:00:48]} Kxg4 {[%emt 0:00:02]} 34. Nd5 {[%emt 0:00:06]} Bxd5 {[%emt 0:
01:43]} 35. cxd5 {[%emt 0:00:02]} Rxd5 {[%emt 0:00:02]} 36. Rb1 {[%emt 0:00:00]
} Nc4 {[%emt 0:00:24]} 37. Rxb7 {[%emt 0:00:23]} Rd2+ {[%emt 0:00:02]} 38. Kf1
{[%emt 0:00:09]} Rxa2 {[%emt 0:00:04]} 39. Bd4 {[%emt 0:00:15]} Kf5 {[%emt 0:
00:26]} 40. Rf7+ {[%emt 0:01:08]} Ke4 {[%emt 0:00:02]} 41. Ba7 {[%emt 0:00:04]}
a5 {[%emt 0:01:49]} 42. Re7+ {[%emt 0:00:05]} Kd5 {[%emt 0:00:02]} 43. Rf7 {
[%emt 0:00:09]} Ra1+ {[%emt 0:01:25]} 44. Kf2 {[%emt 0:00:08]} Ne5 {[%emt 0:00:
04]} 45. Rf5 {[%emt 0:00:28]} Ke4 {[%emt 0:00:05]} 46. Rf8 {[%emt 0:00:01]} a4
{[%emt 0:00:18]} 47. Re8 {[%emt 0:00:06]} Ra2+ {[%emt 0:00:37]} 48. Kf1 {
[%emt 0:00:02]} Ra1+ {[%emt 0:00:27]} 49. Kf2 {[%emt 0:00:01]} Kd5 {[%emt 0:00:
05]} 50. Bb8 {[%emt 0:00:07]} Nd3+ {[%emt 0:00:06]} 51. Kf3 {[%emt 0:00:08]}
Rf1+ {[%emt 0:00:11]} 52. Kg4 {[%emt 0:00:10]} a3 {[%emt 0:00:03]} 53. Re2 {
[%emt 0:00:18]} Rf2 {[%emt 0:00:14]} 54. Rxf2 {[%emt 0:00:43]} Nxf2+ {[%emt 0:
00:02]} 55. Kf5 {[%emt 0:00:01]} Nd3 {[%emt 0:00:12]} 0-1